[Event "*** Titled Tuesday Blitz AM"]
[Site "Chess.com"]
[Date "2020.01.07"]
[Round "8"]
[White "SlavenPastar"]
[Black "NemtsevIgor"]
[Result "1/2-1/2"]
[WhiteElo "2533"]
[BlackElo "2380"]
[TimeControl "180+2"]
[EndTime "10:56:41 PST"]
[Termination "Game drawn by repetition"]

1. d4 {[%clk 0:01:57.2]} 1... c6 {[%clk 0:02:59]} 2. c4 {[%clk 0:01:58]} 2... d6
{[%clk 0:02:59.8]} 3. Nc3 {[%clk 0:01:59.5]} 3... h6 {[%clk 0:03:00.7]} 4. g3
{[%clk 0:01:58.5]} 4... g5 {[%clk 0:03:01.5]} 5. Bg2 {[%clk 0:02:00.1]} 5... Bg7
{[%clk 0:03:02.7]} 6. Nf3 {[%clk 0:02:00.5]} 6... Nd7 {[%clk 0:03:03.9]} 7. O-O
{[%clk 0:02:00.1]} 7... Nf8 {[%clk 0:03:05.2]} 8. e4 {[%clk 0:02:00.9]} 8... Ng6
{[%clk 0:03:06.1]} 9. d5 {[%clk 0:01:49.5]} 9... g4 {[%clk 0:03:05.8]} 10. Nd4
{[%clk 0:01:49.7]} 10... c5 {[%clk 0:03:01.9]} 11. Nf5 {[%clk 0:01:42.5]} 11...
Bxf5 {[%clk 0:03:02.8]} 12. exf5 {[%clk 0:01:43.8]} 12... Ne5 {[%clk 0:03:04.1]}
13. Bf4 {[%clk 0:01:40.1]} 13... h5 {[%clk 0:03:03.7]} 14. Re1 {[%clk
0:01:35.6]} 14... Qb6 {[%clk 0:03:01.4]} 15. Qa4+ {[%clk 0:01:21.2]} 15... Kf8
{[%clk 0:03:00.4]} 16. Ne4 {[%clk 0:01:07.3]} 16... h4 {[%clk 0:02:36.2]} 17.
Rab1 {[%clk 0:00:43.2]} 17... Nd3 {[%clk 0:02:21.2]} 18. Re3 {[%clk 0:00:31.1]}
18... Nxf4 {[%clk 0:02:18.9]} 19. gxf4 {[%clk 0:00:33]} 19... Bd4 {[%clk
0:02:19.6]} 20. Rb3 {[%clk 0:00:33.7]} 20... Qc7 {[%clk 0:02:18.6]} 21. Rd3
{[%clk 0:00:20]} 21... g3 {[%clk 0:02:11.9]} 22. hxg3 {[%clk 0:00:20.6]} 22...
hxg3 {[%clk 0:02:12.6]} 23. Nxg3 {[%clk 0:00:21.1]} 23... Nf6 {[%clk 0:02:12.1]}
24. Qd1 {[%clk 0:00:18.1]} 24... Rg8 {[%clk 0:01:57.3]} 25. b4 {[%clk
0:00:17.2]} 25... Rxg3 {[%clk 0:01:53.7]} 26. Rxg3 {[%clk 0:00:16.1]} 26... b6
{[%clk 0:01:44.8]} 27. Rbb3 {[%clk 0:00:16.6]} 27... Ke8 {[%clk 0:01:43.3]} 28.
Rbd3 {[%clk 0:00:17.3]} 28... Kd7 {[%clk 0:01:44]} 29. Rxd4 {[%clk 0:00:17.3]}
29... cxd4 {[%clk 0:01:45.4]} 30. Qxd4 {[%clk 0:00:18.9]} 30... Rc8 {[%clk
0:01:43.7]} 31. Rc3 {[%clk 0:00:19]} 31... a5 {[%clk 0:01:43.6]} 32. a3 {[%clk
0:00:19.8]} 32... axb4 {[%clk 0:01:44]} 33. axb4 {[%clk 0:00:21.7]} 33... Ra8
{[%clk 0:01:45.3]} 34. Rc1 {[%clk 0:00:21.1]} 34... Ra4 {[%clk 0:01:33.5]} 35.
Qd2 {[%clk 0:00:18.4]} 35... Qb8 {[%clk 0:01:24]} 36. Bf3 {[%clk 0:00:15.5]}
36... Qg8+ {[%clk 0:01:22.8]} 37. Kf1 {[%clk 0:00:16.2]} 37... Qh7 {[%clk
0:01:22.7]} 38. Qc2 {[%clk 0:00:15.7]} 38... Rxb4 {[%clk 0:01:20.2]} 39. Ra1
{[%clk 0:00:16.5]} 39... Qh3+ {[%clk 0:01:15.9]} 40. Bg2 {[%clk 0:00:17.6]}
40... Qb3 {[%clk 0:01:12.9]} 41. Ra7+ {[%clk 0:00:16.9]} 41... Kd8 {[%clk
0:01:12.1]} 42. Qxb3 {[%clk 0:00:13.6]} 42... Rxb3 {[%clk 0:01:13.3]} 43. Rb7
{[%clk 0:00:12.9]} 43... Nh5 {[%clk 0:01:07.5]} 44. Be4 {[%clk 0:00:11.6]} 44...
Nxf4 {[%clk 0:01:07.8]} 45. Ke1 {[%clk 0:00:11.6]} 45... Rb4 {[%clk 0:01:05.2]}
46. Kd2 {[%clk 0:00:11.4]} 46... Rxc4 {[%clk 0:01:05.6]} 47. Ke3 {[%clk
0:00:12.9]} 47... Nh5 {[%clk 0:01:03]} 48. Rxb6 {[%clk 0:00:14.4]} 48... Nf6
{[%clk 0:01:03.5]} 49. f3 {[%clk 0:00:14.7]} 49... Nd7 {[%clk 0:01:01.4]} 50.
Ra6 {[%clk 0:00:14.7]} 50... f6 {[%clk 0:00:57.8]} 51. Ra8+ {[%clk 0:00:14.6]}
51... Rc8 {[%clk 0:00:57.8]} 52. Ra2 {[%clk 0:00:15.8]} 52... Nc5 {[%clk
0:00:58.2]} 53. Rh2 {[%clk 0:00:16.4]} 53... Kd7 {[%clk 0:00:58.9]} 54. Rh7
{[%clk 0:00:16.6]} 54... Ra8 {[%clk 0:00:59.3]} 55. Rh2 {[%clk 0:00:17.3]} 55...
Ra3+ {[%clk 0:01:00]} 56. Kf4 {[%clk 0:00:18]} 56... Rc3 {[%clk 0:00:57.4]} 57.
Ra2 {[%clk 0:00:17.9]} 57... Nb3 {[%clk 0:00:56]} 58. Ra7+ {[%clk 0:00:17.8]}
58... Ke8 {[%clk 0:00:56.9]} 59. Ra4 {[%clk 0:00:11]} 59... Kf7 {[%clk
0:00:54.7]} 60. Rb4 {[%clk 0:00:11.6]} 60... Nc5 {[%clk 0:00:53.5]} 61. Rb8
{[%clk 0:00:09]} 61... Nd7 {[%clk 0:00:50.3]} 62. Rb1 {[%clk 0:00:09.4]} 62...
Ne5 {[%clk 0:00:51.3]} 63. Rf1 {[%clk 0:00:09.6]} 63... Ra3 {[%clk 0:00:50.8]}
64. Rd1 {[%clk 0:00:09]} 64... Ra4 {[%clk 0:00:50.9]} 65. Rd2 {[%clk 0:00:08]}
65... Nc4 {[%clk 0:00:49.9]} 66. Rd1 {[%clk 0:00:07.7]} 66... Nb6 {[%clk
0:00:45.2]} 67. Rb1 {[%clk 0:00:08.7]} 67... Nc4 {[%clk 0:00:45.3]} 68. Rb3
{[%clk 0:00:08.9]} 68... Ra3 {[%clk 0:00:44.3]} 69. Rb4 {[%clk 0:00:06.8]} 69...
Ne5 {[%clk 0:00:42.5]} 70. Rb8 {[%clk 0:00:06.1]} 70... Ra1 {[%clk 0:00:42.1]}
71. Rb4 {[%clk 0:00:05.6]} 71... Rh1 {[%clk 0:00:40.7]} 72. Rb8 {[%clk
0:00:06.6]} 72... Rh4+ {[%clk 0:00:40.9]} 73. Ke3 {[%clk 0:00:07.7]} 73... Nc4+
{[%clk 0:00:37.4]} 74. Kd4 {[%clk 0:00:08.3]} 74... Nd2 {[%clk 0:00:38.3]} 75.
Ke3 {[%clk 0:00:09.3]} 75... Nc4+ {[%clk 0:00:35.7]} 76. Kd4 {[%clk 0:00:10.2]}
76... Ne5 {[%clk 0:00:36.7]} 77. Ke3 {[%clk 0:00:10.8]} 77... Rh2 {[%clk
0:00:37.6]} 78. Rb3 {[%clk 0:00:10.1]} 78... Nd7 {[%clk 0:00:33.4]} 79. Ra3
{[%clk 0:00:10.3]} 79... Nc5 {[%clk 0:00:34.4]} 80. Kf4 {[%clk 0:00:11.7]} 80...
Rh4+ {[%clk 0:00:33.9]} 81. Kg3 {[%clk 0:00:12]} 81... Rh6 {[%clk 0:00:32.2]}
82. Kf4 {[%clk 0:00:13.3]} 82... Rh2 {[%clk 0:00:30.4]} 83. Kg3 {[%clk 0:00:14]}
83... Re2 {[%clk 0:00:31.4]} 84. Kf4 {[%clk 0:00:15.6]} 84... Rf2 {[%clk
0:00:31]} 85. Kg3 {[%clk 0:00:15.4]} 85... Rf1 {[%clk 0:00:28.8]} 86. Kf4 {[%clk
0:00:16.7]} 86... Nxe4 {[%clk 0:00:29]} 87. Kxe4 {[%clk 0:00:17.2]} 87... Re1+
{[%clk 0:00:30.6]} 88. Kf4 {[%clk 0:00:18.2]} 88... Re5 {[%clk 0:00:32]} 89. Ra5
{[%clk 0:00:18.9]} 89... Ke8 {[%clk 0:00:33.2]} 90. Kg4 {[%clk 0:00:17.1]} 90...
Kd7 {[%clk 0:00:34.2]} 91. Rb5 {[%clk 0:00:16.2]} 91... Kc7 {[%clk 0:00:35.4]}
92. Kf4 {[%clk 0:00:17.5]} 92... Re1 {[%clk 0:00:35.5]} 93. Kg4 {[%clk
0:00:18.3]} 93... Rc1 {[%clk 0:00:36]} 94. Rb4 {[%clk 0:00:06.3]} 94... Rc5
{[%clk 0:00:36.4]} 95. Rd4 {[%clk 0:00:07.8]} 95... Ra5 {[%clk 0:00:36.3]} 96.
Kh5 {[%clk 0:00:09.1]} 96... Kd7 {[%clk 0:00:33.2]} 97. Kg6 {[%clk 0:00:09.5]}
97... Ra3 {[%clk 0:00:33.9]} 98. Rf4 {[%clk 0:00:04.8]} 98... Rd3 {[%clk
0:00:34.8]} 99. Kf7 {[%clk 0:00:04.7]} 99... Rxd5 {[%clk 0:00:35.7]} 100. Kg6
{[%clk 0:00:04]} 100... Rd1 {[%clk 0:00:35.4]} 101. Ra4 {[%clk 0:00:05.5]}
101... d5 {[%clk 0:00:35.8]} 102. Ra7+ {[%clk 0:00:06.2]} 102... Kd6 {[%clk
0:00:37.2]} 103. Ra6+ {[%clk 0:00:07.5]} 103... Kc5 {[%clk 0:00:36.5]} 104. Re6
{[%clk 0:00:08.2]} 104... Rf1 {[%clk 0:00:35.3]} 105. Rxe7 {[%clk 0:00:08.1]}
105... Rxf3 {[%clk 0:00:36.4]} 106. Kxf6 {[%clk 0:00:09.6]} 106... d4 {[%clk
0:00:37.6]} 107. Rd7 {[%clk 0:00:10.3]} 107... d3 {[%clk 0:00:37.4]} 108. Ke5
{[%clk 0:00:09.7]} 108... Kc4 {[%clk 0:00:37.5]} 109. Ke4 {[%clk 0:00:08]}
109... Rh3 {[%clk 0:00:37.2]} 110. Rc7+ {[%clk 0:00:07.8]} 110... Kb3 {[%clk
0:00:36.2]} 111. f6 {[%clk 0:00:06.6]} 111... d2 {[%clk 0:00:33.5]} 112. Rd7
{[%clk 0:00:07.8]} 112... Kc2 {[%clk 0:00:34.1]} 113. f7 {[%clk 0:00:08.6]}
113... Rh8 {[%clk 0:00:35]} 114. Rc7+ {[%clk 0:00:05.7]} 114... Kd1 {[%clk
0:00:34.1]} 115. Kf5 {[%clk 0:00:04.5]} 115... Ke1 {[%clk 0:00:33.9]} 116. Re7+
{[%clk 0:00:05.9]} 116... Kf2 {[%clk 0:00:34.1]} 117. Rd7 {[%clk 0:00:06.6]}
117... Ke1 {[%clk 0:00:33]} 118. Re7+ {[%clk 0:00:07.2]} 118... Kf1 {[%clk
0:00:31.7]} 119. Rd7 {[%clk 0:00:05.6]} 119... Ke1 {[%clk 0:00:32.4]} 120. Re7+
{[%clk 0:00:05.3]} 1/2-1/2

[Event "*** Titled Tuesday Blitz AM"]
[Site "Chess.com"]
[Date "2020.01.07"]
[Round "9"]
[White "KerryStead"]
[Black "Eliwood44"]
[Result "1-0"]
[WhiteElo "2097"]
[BlackElo "2305"]
[TimeControl "180+2"]
[EndTime "10:57:53 PST"]
[Termination "KerryStead won by resignation"]

1. d4 {[%clk 0:03:01.8]} 1... Nf6 {[%clk 0:03:00.8]} 2. f3 {[%clk 0:03:02.7]}
2... d5 {[%clk 0:03:01.5]} 3. e4 {[%clk 0:03:03.1]} 3... dxe4 {[%clk 0:03:02.1]}
4. Nc3 {[%clk 0:03:04.2]} 4... e5 {[%clk 0:03:02.7]} 5. dxe5 {[%clk 0:03:04.7]}
5... Qxd1+ {[%clk 0:03:01.9]} 6. Kxd1 {[%clk 0:03:05.9]} 6... Nfd7 {[%clk
0:03:03.1]} 7. Nd5 {[%clk 0:03:06.5]} 7... Kd8 {[%clk 0:02:55.5]} 8. Bg5+ {[%clk
0:03:07.2]} 8... f6 {[%clk 0:02:56.9]} 9. exf6 {[%clk 0:03:07.7]} 9... gxf6
{[%clk 0:02:54.7]} 10. Nxf6 {[%clk 0:03:08.6]} 10... Be7 {[%clk 0:02:55.9]} 11.
Nxe4 {[%clk 0:03:09.2]} 11... Bxg5 {[%clk 0:02:55.8]} 12. Nxg5 {[%clk
0:03:10.4]} 12... Nc6 {[%clk 0:02:57.7]} 1-0

[Event "*** Titled Tuesday Blitz AM"]
[Site "Chess.com"]
[Date "2020.01.07"]
[Round "9"]
[White "Sjakkerntobi"]
[Black "przemekpiotrowski"]
[Result "1-0"]
[WhiteElo "2274"]
[BlackElo "2372"]
[TimeControl "180+2"]
[EndTime "10:58:27 PST"]
[Termination "Sjakkerntobi won by resignation"]

1. e4 {[%clk 0:03:01.9]} 1... c5 {[%clk 0:03:00.5]} 2. Nf3 {[%clk 0:03:02]} 2...
Nc6 {[%clk 0:03:01.9]} 3. d4 {[%clk 0:03:03.2]} 3... cxd4 {[%clk 0:03:03.8]} 4.
Nxd4 {[%clk 0:03:05.1]} 4... Nf6 {[%clk 0:03:05.3]} 5. Nc3 {[%clk 0:03:06]} 5...
d6 {[%clk 0:03:06.5]} 6. Bg5 {[%clk 0:02:59.4]} 6... e6 {[%clk 0:03:07.4]} 7. f4
{[%clk 0:03:00.2]} 7... Bd7 {[%clk 0:03:07.8]} 8. Be2 {[%clk 0:02:54.8]} 8... a6
{[%clk 0:03:08.4]} 9. O-O {[%clk 0:02:50.9]} 9... b5 {[%clk 0:03:08.2]} 10. Kh1
{[%clk 0:02:49]} 10... Qb6 {[%clk 0:03:08.6]} 11. Nxc6 {[%clk 0:02:45.6]} 11...
Bxc6 {[%clk 0:03:08.6]} 12. Bf3 {[%clk 0:02:47]} 12... Be7 {[%clk 0:03:08.1]}
13. e5 {[%clk 0:02:47.6]} 13... dxe5 {[%clk 0:03:06.5]} 14. fxe5 {[%clk
0:02:46.2]} 14... Nd7 {[%clk 0:03:00.5]} 15. Bxe7 {[%clk 0:02:45.6]} 15... Kxe7
{[%clk 0:03:02.4]} 16. Qd6+ {[%clk 0:02:45.7]} 16... Ke8 {[%clk 0:03:04]} 17.
Bxc6 {[%clk 0:02:46.4]} 1-0

[Event "*** Titled Tuesday Blitz AM"]
[Site "Chess.com"]
[Date "2020.01.07"]
[Round "9"]
[White "esskeettit"]
[Black "MarcoRiehle"]
[Result "1-0"]
[WhiteElo "2492"]
[BlackElo "2617"]
[TimeControl "180+2"]
[EndTime "10:59:02 PST"]
[Termination "esskeettit won by checkmate"]

1. d4 {[%clk 0:03:01.9]} 1... d5 {[%clk 0:03:00.3]} 2. c4 {[%clk 0:03:00.5]}
2... e6 {[%clk 0:02:57.1]} 3. Nc3 {[%clk 0:02:59.7]} 3... c5 {[%clk 0:02:55.3]}
4. cxd5 {[%clk 0:02:31.4]} 4... cxd4 {[%clk 0:02:54.6]} 5. Qxd4 {[%clk
0:02:30.8]} 5... Nc6 {[%clk 0:02:54.7]} 6. Qa4 {[%clk 0:02:24.7]} 6... exd5
{[%clk 0:02:56.6]} 7. Nf3 {[%clk 0:02:25.1]} 7... d4 {[%clk 0:02:55.4]} 8. Nb5
{[%clk 0:02:22.5]} 8... Bb4+ {[%clk 0:02:53.9]} 9. Bd2 {[%clk 0:02:23.1]} 9...
Bxd2+ {[%clk 0:02:54.7]} 10. Nxd2 {[%clk 0:02:23.6]} 10... Nf6 {[%clk
0:02:54.7]} 11. Qa3 {[%clk 0:02:17.3]} 11... a6 {[%clk 0:02:48]} 12. Nd6+ {[%clk
0:02:17.7]} 12... Kd7 {[%clk 0:02:45.5]} 13. Nxf7 {[%clk 0:02:16.3]} 13... Qe8
{[%clk 0:02:46]} 14. Qd6# {[%clk 0:02:15.2]} 1-0

[Event "*** Titled Tuesday Blitz AM"]
[Site "Chess.com"]
[Date "2020.01.07"]
[Round "9"]
[White "Last7Samurai"]
[Black "Mr_Sinigami"]
[Result "0-1"]
[WhiteElo "2798"]
[BlackElo "2569"]
[TimeControl "180+2"]
[EndTime "11:00:22 PST"]
[Termination "Mr_Sinigami won by resignation"]

1. d4 {[%clk 0:03:01.9]} 1... Nf6 {[%clk 0:02:59.9]} 2. Bg5 {[%clk 0:03:02]}
2... c5 {[%clk 0:02:58]} 3. Nc3 {[%clk 0:03:01.6]} 3... cxd4 {[%clk 0:02:49.9]}
4. Qxd4 {[%clk 0:03:03.5]} 4... Nc6 {[%clk 0:02:50.7]} 5. Qh4 {[%clk 0:03:03.5]}
5... d6 {[%clk 0:02:38]} 6. O-O-O {[%clk 0:03:02.3]} 6... Be6 {[%clk 0:02:35.8]}
7. Kb1 {[%clk 0:02:56.5]} 7... Qa5 {[%clk 0:02:35.2]} 8. a3 {[%clk 0:02:51.9]}
8... Rc8 {[%clk 0:02:35.1]} 9. e4 {[%clk 0:02:48.9]} 9... Ne5 {[%clk 0:02:23.9]}
10. Bb5+ {[%clk 0:02:44.7]} 10... Nfd7 {[%clk 0:02:19.4]} 11. f4 {[%clk
0:02:35.6]} 11... Rxc3 {[%clk 0:02:10]} 12. Bxd7+ {[%clk 0:02:36.1]} 12... Nxd7
{[%clk 0:02:09.9]} 13. bxc3 {[%clk 0:02:36.3]} 13... Qxa3 {[%clk 0:02:03.5]} 14.
Rd5 {[%clk 0:02:34.9]} 14... Bxd5 {[%clk 0:02:02.2]} 15. exd5 {[%clk 0:02:33.8]}
15... Nc5 {[%clk 0:01:36.6]} 16. Qg4 {[%clk 0:02:32.2]} 16... Kd8 {[%clk
0:01:35.8]} 0-1

[Event "*** Titled Tuesday Blitz AM"]
[Site "Chess.com"]
[Date "2020.01.07"]
[Round "9"]
[White "TST2014"]
[Black "chigorin28"]
[Result "0-1"]
[WhiteElo "2523"]
[BlackElo "2434"]
[TimeControl "180+2"]
[EndTime "11:00:43 PST"]
[Termination "chigorin28 won by checkmate"]

1. d4 {[%clk 0:03:01.9]} 1... Nf6 {[%clk 0:03:00.4]} 2. c4 {[%clk 0:03:02.6]}
2... e6 {[%clk 0:03:01.7]} 3. Nf3 {[%clk 0:03:03.4]} 3... c5 {[%clk 0:03:03.1]}
4. e3 {[%clk 0:03:03.2]} 4... cxd4 {[%clk 0:03:04.1]} 5. exd4 {[%clk 0:03:03.5]}
5... d5 {[%clk 0:03:06]} 6. Nc3 {[%clk 0:03:03.1]} 6... Be7 {[%clk 0:03:07.3]}
7. Bd3 {[%clk 0:03:03]} 7... O-O {[%clk 0:03:08.6]} 8. O-O {[%clk 0:03:03]} 8...
Nc6 {[%clk 0:03:07.6]} 9. a3 {[%clk 0:02:53.6]} 9... dxc4 {[%clk 0:03:07]} 10.
Bxc4 {[%clk 0:02:53.2]} 10... a6 {[%clk 0:03:06.2]} 11. Ba2 {[%clk 0:02:50.7]}
11... b5 {[%clk 0:03:05.2]} 12. Be3 {[%clk 0:02:42.8]} 12... Bb7 {[%clk
0:03:04.1]} 13. Qe2 {[%clk 0:02:42.8]} 13... Rc8 {[%clk 0:03:00.2]} 14. Rfd1
{[%clk 0:02:43]} 14... Na5 {[%clk 0:03:00.9]} 15. Rac1 {[%clk 0:02:31.1]} 15...
Nc4 {[%clk 0:02:59.4]} 16. a4 {[%clk 0:02:26.9]} 16... Nxe3 {[%clk 0:02:57.8]}
17. fxe3 {[%clk 0:02:27.2]} 17... bxa4 {[%clk 0:02:59.1]} 18. Nxa4 {[%clk
0:02:20.5]} 18... Rxc1 {[%clk 0:03:00.2]} 19. Rxc1 {[%clk 0:02:21.2]} 19... Qa5
{[%clk 0:03:02.1]} 20. Nc3 {[%clk 0:02:16.1]} 20... Rd8 {[%clk 0:02:47.5]} 21.
Ne5 {[%clk 0:02:13.6]} 21... Qb4 {[%clk 0:02:38.5]} 22. h3 {[%clk 0:01:37.1]}
22... h6 {[%clk 0:02:38.5]} 23. Qc4 {[%clk 0:01:32.9]} 23... Qxb2 {[%clk
0:02:33.1]} 24. Rb1 {[%clk 0:01:32.8]} 24... Qxg2# {[%clk 0:02:31.8]} 0-1

[Event "*** Titled Tuesday Blitz AM"]
[Site "Chess.com"]
[Date "2020.01.07"]
[Round "9"]
[White "levallem"]
[Black "MixMasterChess"]
[Result "0-1"]
[WhiteElo "2174"]
[BlackElo "2147"]
[TimeControl "180+2"]
[EndTime "11:02:02 PST"]
[Termination "MixMasterChess won by resignation"]

1. d4 {[%clk 0:03:00]} 1... d6 {[%clk 0:02:59.8]} 2. Nf3 {[%clk 0:02:59.1]} 2...
f5 {[%clk 0:03:00.7]} 3. g3 {[%clk 0:02:59.7]} 3... Nf6 {[%clk 0:03:02.1]} 4.
Bg2 {[%clk 0:03:00.3]} 4... g6 {[%clk 0:03:03.6]} 5. c4 {[%clk 0:03:00.8]} 5...
Bg7 {[%clk 0:03:04.9]} 6. Nc3 {[%clk 0:03:00.8]} 6... O-O {[%clk 0:03:05.7]} 7.
d5 {[%clk 0:03:02]} 7... Qe8 {[%clk 0:02:58.1]} 8. O-O {[%clk 0:03:03]} 8... Na6
{[%clk 0:02:57.8]} 9. Nd4 {[%clk 0:03:02.3]} 9... Bd7 {[%clk 0:02:54.2]} 10. a3
{[%clk 0:02:47.7]} 10... c5 {[%clk 0:02:54.6]} 11. dxc6 {[%clk 0:02:45.9]} 11...
bxc6 {[%clk 0:02:56.2]} 12. Ne6 {[%clk 0:02:45.8]} 12... Bxe6 {[%clk 0:02:54.3]}
13. b3 {[%clk 0:02:45.9]} 13... Nc5 {[%clk 0:02:49.8]} 14. Rb1 {[%clk
0:02:43.8]} 14... Bd7 {[%clk 0:02:43.8]} 15. Qc2 {[%clk 0:02:41.8]} 15... e5
{[%clk 0:02:42.2]} 16. Rd1 {[%clk 0:02:43.1]} 16... Qe7 {[%clk 0:02:39.7]} 17.
Be3 {[%clk 0:02:35]} 17... Ne6 {[%clk 0:02:36.8]} 18. Qd2 {[%clk 0:02:34.6]}
18... Nd4 {[%clk 0:02:24]} 19. Bxd4 {[%clk 0:02:34.8]} 19... exd4 {[%clk
0:02:25]} 20. Na4 {[%clk 0:02:25.8]} 20... Ne4 {[%clk 0:02:18.7]} 21. Qd3 {[%clk
0:02:11.9]} 21... c5 {[%clk 0:02:16.9]} 22. Nb2 {[%clk 0:02:01.3]} 22... Rab8
{[%clk 0:02:06.7]} 23. Bxe4 {[%clk 0:01:53.7]} 23... fxe4 {[%clk 0:02:06.5]} 24.
Qc2 {[%clk 0:01:54.4]} 24... Bh3 {[%clk 0:02:02.3]} 25. Rd2 {[%clk 0:01:41.5]}
25... Rxf2 {[%clk 0:01:56.6]} 26. Kxf2 {[%clk 0:01:42]} 26... e3+ {[%clk
0:01:57.8]} 27. Ke1 {[%clk 0:01:40.2]} 27... Qf6 {[%clk 0:01:46.3]} 0-1

[Event "*** Titled Tuesday Blitz AM"]
[Site "Chess.com"]
[Date "2020.01.07"]
[Round "9"]
[White "csati17"]
[Black "Hadza_3"]
[Result "0-1"]
[WhiteElo "2544"]
[BlackElo "2375"]
[TimeControl "180+2"]
[EndTime "11:02:16 PST"]
[Termination "Hadza_3 won by resignation"]

1. c4 {[%clk 0:03:01.9]} 1... e5 {[%clk 0:03:00.7]} 2. g3 {[%clk 0:03:02.6]}
2... Nc6 {[%clk 0:03:02.6]} 3. Bg2 {[%clk 0:03:03.1]} 3... Bc5 {[%clk
0:03:04.5]} 4. Nc3 {[%clk 0:03:03.9]} 4... d6 {[%clk 0:03:05.8]} 5. e3 {[%clk
0:03:04.4]} 5... a6 {[%clk 0:03:07.2]} 6. Nge2 {[%clk 0:03:04.9]} 6... Ba7
{[%clk 0:03:09.1]} 7. d4 {[%clk 0:03:01.7]} 7... h5 {[%clk 0:03:06.9]} 8. h3
{[%clk 0:02:58.5]} 8... h4 {[%clk 0:03:06.6]} 9. g4 {[%clk 0:02:27.6]} 9... f5
{[%clk 0:03:06.1]} 10. Qd3 {[%clk 0:02:08.8]} 10... Nh6 {[%clk 0:02:59.4]} 11.
Bxc6+ {[%clk 0:02:03.8]} 11... bxc6 {[%clk 0:02:58.5]} 12. dxe5 {[%clk
0:02:05.7]} 12... O-O {[%clk 0:02:51.6]} 13. e4 {[%clk 0:01:54.1]} 13... fxg4
{[%clk 0:02:48.5]} 14. Bxh6 {[%clk 0:01:49.3]} 14... Bxf2+ {[%clk 0:02:46.5]}
15. Kd2 {[%clk 0:01:50.7]} 15... gxh6 {[%clk 0:02:45.6]} 16. hxg4 {[%clk
0:01:41.4]} 16... Bxg4 {[%clk 0:02:39]} 17. Rag1 {[%clk 0:01:21.9]} 17... Bxg1
{[%clk 0:02:37.9]} 18. Rxg1 {[%clk 0:01:22.9]} 18... Qg5+ {[%clk 0:02:39.4]} 19.
Kc2 {[%clk 0:01:17.9]} 19... dxe5 {[%clk 0:02:28.8]} 20. c5 {[%clk 0:00:39.7]}
20... Rad8 {[%clk 0:02:16.3]} 21. Qc4+ {[%clk 0:00:40.7]} 21... Kh7 {[%clk
0:02:14.7]} 22. Kb3 {[%clk 0:00:42.1]} 22... Rf6 {[%clk 0:01:59.9]} 23. Nc1
{[%clk 0:00:28.3]} 0-1

[Event "*** Titled Tuesday Blitz AM"]
[Site "Chess.com"]
[Date "2020.01.07"]
[Round "9"]
[White "GMHess"]
[Black "platy3"]
[Result "0-1"]
[WhiteElo "2742"]
[BlackElo "2891"]
[TimeControl "180+2"]
[EndTime "11:03:41 PST"]
[Termination "platy3 won on time"]

1. c4 {[%clk 0:02:57.7]} 1... Nf6 {[%clk 0:02:58.8]} 2. Nc3 {[%clk 0:02:57.6]}
2... e6 {[%clk 0:02:58.7]} 3. e4 {[%clk 0:02:57.1]} 3... d5 {[%clk 0:02:59.1]}
4. e5 {[%clk 0:02:56.4]} 4... d4 {[%clk 0:02:59.8]} 5. exf6 {[%clk 0:02:58]}
5... dxc3 {[%clk 0:03:00.9]} 6. fxg7 {[%clk 0:02:53.3]} 6... cxd2+ {[%clk
0:03:01.2]} 7. Bxd2 {[%clk 0:02:55.2]} 7... Bxg7 {[%clk 0:03:01.8]} 8. Qc2
{[%clk 0:02:56.7]} 8... Nc6 {[%clk 0:03:00.2]} 9. Nf3 {[%clk 0:02:55.1]} 9... a5
{[%clk 0:02:49.3]} 10. O-O-O {[%clk 0:02:50.6]} 10... Qe7 {[%clk 0:02:50.4]} 11.
a3 {[%clk 0:02:13.4]} 11... O-O {[%clk 0:02:34.7]} 12. Bd3 {[%clk 0:02:10.9]}
12... f5 {[%clk 0:02:36.3]} 13. g4 {[%clk 0:01:54.5]} 13... fxg4 {[%clk
0:02:31.2]} 14. Bxh7+ {[%clk 0:01:54.2]} 14... Kh8 {[%clk 0:02:32]} 15. Ng5
{[%clk 0:01:52.9]} 15... Rxf2 {[%clk 0:02:13.4]} 16. Rhf1 {[%clk 0:00:53.2]}
16... Rf6 {[%clk 0:01:05.1]} 17. Rxf6 {[%clk 0:00:09.5]} 17... Qxf6 {[%clk
0:01:05.2]} 18. Bg6 {[%clk 0:00:03.5]} 18... Ne5 {[%clk 0:00:56.3]} 19. Be4
{[%clk 0:00:02.4]} 19... Kg8 {[%clk 0:00:43.2]} 0-1

[Event "*** Titled Tuesday Blitz AM"]
[Site "Chess.com"]
[Date "2020.01.07"]
[Round "9"]
[White "BocharovD"]
[Black "KhazarBabazada"]
[Result "0-1"]
[WhiteElo "2773"]
[BlackElo "2915"]
[TimeControl "180+2"]
[EndTime "11:03:44 PST"]
[Termination "KhazarBabazada won on time"]

1. c4 {[%clk 0:03:01.9]} 1... Nf6 {[%clk 0:03:00.5]} 2. g3 {[%clk 0:03:02.8]}
2... g6 {[%clk 0:03:01.1]} 3. Bg2 {[%clk 0:02:59.2]} 3... Bg7 {[%clk 0:03:03]}
4. Nc3 {[%clk 0:03:00.7]} 4... O-O {[%clk 0:03:00.7]} 5. d4 {[%clk 0:03:02.3]}
5... c6 {[%clk 0:03:01.6]} 6. e4 {[%clk 0:03:03]} 6... d6 {[%clk 0:03:02.7]} 7.
Nf3 {[%clk 0:03:01.7]} 7... Nbd7 {[%clk 0:03:03.8]} 8. O-O {[%clk 0:03:02.7]}
8... a6 {[%clk 0:03:03.4]} 9. Re1 {[%clk 0:02:58.5]} 9... e5 {[%clk 0:03:01.7]}
10. h3 {[%clk 0:02:58.3]} 10... Qe7 {[%clk 0:02:59.9]} 11. Be3 {[%clk
0:02:55.8]} 11... Ne8 {[%clk 0:02:54.6]} 12. Qd2 {[%clk 0:02:49.2]} 12... Nc7
{[%clk 0:02:55]} 13. Rad1 {[%clk 0:02:47]} 13... b5 {[%clk 0:02:53.6]} 14. dxe5
{[%clk 0:02:18.2]} 14... dxe5 {[%clk 0:02:52.5]} 15. Qd6 {[%clk 0:02:17.1]}
15... Qxd6 {[%clk 0:02:49.8]} 16. Rxd6 {[%clk 0:02:17]} 16... Ne8 {[%clk
0:02:40.2]} 17. Rdd1 {[%clk 0:01:58.3]} 17... f5 {[%clk 0:02:32.8]} 18. exf5
{[%clk 0:01:52.3]} 18... gxf5 {[%clk 0:02:33.8]} 19. Ng5 {[%clk 0:01:53.4]}
19... e4 {[%clk 0:02:32.3]} 20. Ne6 {[%clk 0:01:52.9]} 20... Rf7 {[%clk
0:02:30.2]} 21. Nxg7 {[%clk 0:01:41.5]} 21... Nxg7 {[%clk 0:02:22.8]} 22. g4
{[%clk 0:01:25]} 22... Ne5 {[%clk 0:02:06.6]} 23. cxb5 {[%clk 0:01:21]} 23...
axb5 {[%clk 0:02:05]} 24. Rd8+ {[%clk 0:01:15.6]} 24... Rf8 {[%clk 0:02:04.7]}
25. Rxf8+ {[%clk 0:01:16.4]} 25... Kxf8 {[%clk 0:02:06.6]} 26. gxf5 {[%clk
0:01:17.9]} 26... Bxf5 {[%clk 0:02:04.4]} 27. Nxe4 {[%clk 0:01:15.4]} 27... Rxa2
{[%clk 0:02:01]} 28. Bc5+ {[%clk 0:01:01.4]} 28... Kg8 {[%clk 0:02:00.3]} 29.
Nf6+ {[%clk 0:00:35.6]} 29... Kf7 {[%clk 0:01:59.1]} 30. Rxe5 {[%clk 0:00:34]}
30... Kxf6 {[%clk 0:01:59.5]} 31. Bd4 {[%clk 0:00:14.7]} 31... Ne6 {[%clk
0:02:00.7]} 32. Bc3 {[%clk 0:00:08.1]} 32... b4 {[%clk 0:02:02]} 33. Ra5+ {[%clk
0:00:04.4]} 33... bxc3 {[%clk 0:02:03.6]} 34. Rxa2 {[%clk 0:00:05.8]} 34... c2
{[%clk 0:02:05.5]} 35. Ra1 {[%clk 0:00:06.9]} 35... Nd4 {[%clk 0:02:07.4]} 0-1